bitfinex/quotes_BTCUSD_20241025
["timestamp","ask_amount","ask_price","bid_price","bid_amount"]
[1729865781600,0.005,68505.0,68500.0,0.17208209]
[1729865781823,0.005,68505.0,68504.0,0.22022066]
[1729865782049,0.005,68505.0,68504.0,0.15050381]
[1729865782279,0.01,68505.0,68504.0,0.15050381]
[1729865784407,0.005,68505.0,68504.0,0.29647981]
[1729865785106,0.01,68505.0,68504.0,0.29647981]
[1729865785571,0.005,68505.0,68504.0,0.29647981]
[1729865785795,0.005865,68505.0,68504.0,0.29647981]
[1729865787854,0.000865,68505.0,68504.0,0.29647981]
[1729865788103,0.005865,68505.0,68504.0,0.29647981]
[1729865788336,0.005865,68505.0,68504.0,0.29939904]
[1729865788337,0.000865,68505.0,68504.0,0.29939904]
[1729865788559,0.000865,68505.0,68504.0,0.32239904]
[1729865788789,0.000865,68505.0,68504.0,0.31947981]
[1729865789366,4e-05,68511.0,68510.0,0.268964]
[1729865789525,4e-05,68511.0,68510.0,0.42238609]
[1729865789748,4e-05,68511.0,68510.0,2.0915499]
[1729865791411,0.00051028,68518.0,68517.0,0.145949]
[1729865791637,0.00051028,68518.0,68517.0,0.4915349]
[1729865794876,0.00051028,68518.0,68517.0,1.9915349]
[1729865795110,0.00051028,68518.0,68517.0,0.4915349]
[1729865796055,0.00051028,68518.0,68517.0,0.52841844]
[1729865796284,0.00051028,68518.0,68517.0,0.4915349]
[1729865796791,0.00051028,68518.0,68517.0,1.9915349]
[1729865797690,0.00051028,68518.0,68517.0,0.4915349]
[1729865797925,0.00051028,68518.0,68517.0,0.29645281]
[1729865798168,0.00551028,68518.0,68517.0,0.29645281]
[1729865798400,0.01051028,68518.0,68517.0,0.15050381]
[1729865799581,0.01051028,68518.0,68504.0,0.291953]
[1729865799582,0.005,68509.0,68504.0,0.291953]
[1729865799808,0.005,68508.0,68506.0,0.145971]
[1729865800028,0.005,68508.0,68502.0,0.291962]
[1729865800029,0.005,68508.0,68507.0,0.15050381]
[1729865800732,0.01,68508.0,68507.0,0.15050381]
[1729865801681,0.005,68505.0,68503.0,0.001648]
[1729865801914,0.005,68505.0,68504.0,0.29647981]
[1729865802150,0.01,68505.0,68503.0,0.001648]
[1729865802386,0.01,68504.0,68503.0,0.001648]
[1729865802614,0.33305809,68504.0,68503.0,0.001648]
[1729865803087,0.33505809,68504.0,68503.0,0.001648]
[1729865803332,0.005,68483.0,68480.0,0.146026]
[1729865803573,0.01,68483.0,68477.0,0.146032]
[1729865803816,0.01,68483.0,68477.0,0.146034]
[1729865804043,0.01,68483.0,68475.0,0.51229666]
[1729865804044,0.005,68480.0,68476.0,0.146036]
[1729865804278,0.005,68478.0,68476.0,0.15050381]
[1729865804516,0.01,68473.0,68467.0,0.51232966]
[1729865804752,0.078,68485.0,68467.0,0.37072447]
[1729865804753,0.005,68469.0,68467.0,0.37072447]
[1729865804986,0.01,68469.0,68467.0,0.15050381]
[1729865805224,0.01,68464.0,68460.0,0.14607]
[1729865805476,0.01,68464.0,68463.0,0.146064]
[1729865806123,0.01,68464.0,68461.0,0.15050381]
[1729865806352,0.005,68463.0,68462.0,0.146066]
[1729865806576,0.005,68463.0,68462.0,0.29656981]
[1729865807063,0.005,68467.0,68466.0,0.146057]
[1729865807284,0.01,68476.0,68475.0,0.146038]
[1729865807500,0.01,68476.0,68475.0,0.29654181]
[1729865807979,0.005,68470.0,68469.0,0.146051]
[1729865808218,0.005,68470.0,68459.0,0.22022066]
[1729865808219,0.005,68464.0,68460.0,0.14607]
[1729865808456,0.005,68464.0,68459.0,0.22022066]
[1729865808457,0.005,68464.0,68463.0,0.146064]
[1729865808676,0.005,68463.0,68462.0,0.146066]
[1729865808940,0.005,68462.0,68460.0,0.14607]
[1729865809155,0.005,68462.0,68453.0,0.1]
[1729865809156,0.005,68462.0,68461.0,0.146068]
[1729865810843,0.005,68464.0,68463.0,0.146064]
[1729865811052,0.005,68464.0,68463.0,0.29626781]
[1729865811311,0.01,68462.0,68458.0,0.00165]
[1729865811522,0.18208209,68459.0,68458.0,0.00165]
[1729865811756,0.27728209,68459.0,68458.0,0.00165]
[1729865812216,0.1052,68459.0,68458.0,0.00165]
[1729865812563,0.1052,68459.0,68458.0,0.147724]
[1729865812972,0.1052,68459.0,68458.0,0.00165]
[1729865813550,0.1052,68459.0,68458.0,0.147724]
[1729865814858,0.1002,68459.0,68458.0,0.29822781]
[1729865815090,0.01,68459.0,68458.0,0.29822781]
[1729865817273,0.005,68459.0,68458.0,0.29822781]
[1729865817481,0.00504,68464.0,68460.0,0.292101]
[1729865817694,4e-05,68464.0,68463.0,0.146064]
[1729865817904,4e-05,68464.0,68463.0,0.29656781]
[1729865818112,4e-05,68464.0,68463.0,1.79656781]
[1729865820312,4e-05,68464.0,68463.0,1.81956781]
[1729865821878,4e-05,68464.0,68463.0,1.79656781]
[1729865821879,0.00504,68464.0,68463.0,1.79656781]
[1729865822140,0.00504,68464.0,68463.0,0.29656781]
[1729865823037,0.005,68462.0,68458.0,0.293797]
[1729865823251,0.005,68462.0,68460.0,0.46422309]
[1729865823469,0.00504,68464.0,68463.0,0.146064]
[1729865823711,0.00504,68464.0,68463.0,0.29656781]
[1729865825502,4e-05,68464.0,68463.0,0.29656781]
[1729865825725,0.00504,68464.0,68463.0,0.29656781]
[1729865826788,4e-05,68464.0,68463.0,1.79656781]
[1729865827005,4e-05,68464.0,68463.0,1.85645135]
[1729865827215,4e-05,68464.0,68463.0,1.81956781]
[1729865827915,4e-05,68464.0,68463.0,1.91956781]
[1729865828150,4e-05,68464.0,68463.0,1.95845135]
[1729865828612,4e-05,68464.0,68463.0,1.91956781]
[1729865828847,0.005,68483.0,68466.0,0.023]
[1729865829074,0.005,68484.0,68483.0,0.146021]
[1729865829312,0.005,68487.0,68483.0,0.3225459]
[1729865829552,0.01,68492.0,68484.0,0.00292008]
[1729865829798,0.0934,68493.0,68489.0,0.146008]
[1729865829799,0.01,68490.0,68489.0,0.146008]
[1729865830051,0.01,68490.0,68489.0,0.29651181]
[1729865830311,0.002,68501.0,68490.0,0.146006]
[1729865830312,0.005,68491.0,68490.0,0.146006]
[1729865830539,0.005,68491.0,68490.0,0.29650981]
[1729865830765,0.01,68491.0,68490.0,0.29650981]
[1729865830981,0.005,68491.0,68490.0,0.29650981]
[1729865831445,0.005,68491.0,68480.0,0.17208209]
[1729865831446,0.005,68487.0,68480.0,0.17208209]
[1729865831690,0.005,68487.0,68486.0,0.146015]
[1729865831948,0.015,68482.0,68481.0,0.438073]
[1729865832188,0.015,68482.0,68481.0,0.58857681]
[1729865832634,0.005,68488.0,68482.0,0.292047]
[1729865832844,0.01,68487.0,68486.0,0.438045]
[1729865833058,0.005,68487.0,68486.0,0.58854881]
[1729865833280,4e-05,68490.0,68489.0,0.146008]
[1729865833537,4e-05,68490.0,68489.0,0.49451372]
[1729865833728,4e-05,68490.0,68489.0,0.4915939]
[1729865833964,4e-05,68490.0,68489.0,0.4935939]
[1729865834189,4e-05,68490.0,68489.0,0.4915939]
[1729865836238,4e-05,68490.0,68489.0,0.4685939]
[1729865836481,4e-05,68490.0,68489.0,0.29651181]
[1729865836699,4e-05,68490.0,68489.0,1.9685939]
[1729865837142,0.00504,68490.0,68489.0,1.79651181]
[1729865837377,4e-05,68490.0,68489.0,0.29651181]
[1729865837583,4e-05,68490.0,68489.0,0.29943158]
[1729865838461,4e-05,68490.0,68489.0,0.32243158]
[1729865838632,4e-05,68490.0,68489.0,0.31951181]
[1729865839051,4e-05,68490.0,68489.0,1.81951181]
[1729865839284,4e-05,68490.0,68489.0,1.90181181]
[1729865839460,4e-05,68490.0,68489.0,1.90381181]
[1729865839667,0.00504,68490.0,68489.0,0.29651181]
[1729865839872,4e-05,68490.0,68489.0,0.51965241]
[1729865840071,4e-05,68490.0,68489.0,0.29651181]
[1729865840264,4e-05,68490.0,68489.0,0.39851181]
[1729865840468,4e-05,68490.0,68489.0,1.89851181]
[1729865840773,0.002,68501.0,68495.0,0.002]
[1729865841001,0.002,68501.0,68500.0,0.61766799]
[1729865841428,0.002,68501.0,68500.0,2.11766799]
[1729865841897,0.002,68501.0,68500.0,2.26365299]
[1729865842138,0.000824,68503.0,68500.0,2.26365299]
[1729865842139,0.000824,68503.0,68502.0,0.268981]
[1729865842367,0.000824,68503.0,68502.0,0.42440343]
[1729865842591,0.00051028,68518.0,68517.0,0.41803109]
[1729865842809,0.00051028,68518.0,68517.0,0.5915349]
[1729865843496,0.00051028,68518.0,68517.0,2.0915349]
[1729865843972,0.00051028,68518.0,68517.0,1.91945281]
[1729865844215,0.00051028,68518.0,68517.0,1.9915349]
[1729865844463,0.00051028,68518.0,68517.0,1.79645281]
[1729865845114,0.00051028,68518.0,68517.0,1.9685349]
[1729865845356,0.00051028,68518.0,68517.0,2.0915349]
[1729865846913,0.00051028,68518.0,68517.0,0.4915349]
[1729865847127,0.00551028,68518.0,68517.0,0.29645281]
[1729865847983,0.00051028,68518.0,68517.0,0.29645281]
[1729865848199,0.00551028,68518.0,68517.0,0.29645281]
[1729865848885,0.00051028,68518.0,68517.0,0.31945281]
[1729865850223,0.01,68510.0,68507.0,0.291938]
[1729865850439,0.005,68498.0,68497.0,0.145991]
[1729865850856,0.005,68498.0,68497.0,0.3209926]
[1729865851092,0.005,68498.0,68497.0,0.31807309]
[1729865851329,0.01,68502.0,68501.0,0.145983]
[1729865852469,0.01,68502.0,68501.0,0.140983]
[1729865852930,0.01,68502.0,68501.0,0.29148681]
[1729865853153,0.005,68502.0,68501.0,0.76345437]
[1729865853362,0.00055028,68518.0,68512.0,0.145959]
[1729865853363,0.005,68513.0,68512.0,0.145959]
[1729865853603,0.01,68513.0,68512.0,0.4685449]
[1729865854065,0.01,68513.0,68512.0,0.29646281]
[1729865854294,0.005,68508.0,68507.0,0.14597]
[1729865854577,0.01,68508.0,68507.0,0.29647381]
[1729865855472,0.015,68508.0,68507.0,0.15050381]
[1729865855700,0.015,68508.0,68501.0,1.291964]
[1729865855701,0.015,68502.0,68501.0,1.0]
[1729865855917,0.44946309,68502.0,68501.0,1.0]
[1729865856172,0.85324899,68502.0,68501.0,0.0001]
[1729865856391,0.015,68485.0,68484.0,0.22022066]
[1729865857037,0.015,68485.0,68482.0,0.146023]
[1729865857241,0.01,68484.0,68482.0,0.146023]
[1729865857463,0.01,68484.0,68483.0,0.147669]
[1729865858604,0.01,68484.0,68483.0,0.001648]
[1729865859323,0.244119,68484.0,68483.0,0.001648]
[1729865859560,0.0981,68484.0,68483.0,0.001648]
[1729865860476,0.015,68484.0,68483.0,0.147669]
[1729865860733,0.40136841,68502.0,68483.0,0.40101641]
[1729865860734,0.01,68488.0,68483.0,0.40101641]
[1729865860993,0.0877,68503.0,68483.0,0.40101641]
[1729865860994,0.005,68496.0,68495.0,0.145996]
[1729865861199,0.01,68496.0,68495.0,0.29649981]
[1729865861413,0.01,68496.0,68495.0,1.79649981]
[1729865861649,0.015,68496.0,68495.0,1.79649981]
[1729865864574,0.015,68496.0,68495.0,0.29649981]
[1729865865795,0.01504,68496.0,68495.0,0.29649981]
[1729865868087,4e-05,68496.0,68495.0,0.29814781]
[1729865868312,4e-05,68496.0,68495.0,0.32406716]
[1729865868534,4e-05,68496.0,68495.0,0.32114781]
[1729865868944,4e-05,68496.0,68495.0,1.79814781]
[1729865869148,0.00504,68496.0,68495.0,1.79814781]
[1729865869345,0.00504,68496.0,68495.0,0.29814781]
[1729865869346,0.01504,68496.0,68495.0,0.29814781]
[1729865869768,0.01504,68496.0,68495.0,0.15215181]
[1729865870194,0.01504,68496.0,68495.0,0.001648]
[1729865871236,0.01504,68496.0,68495.0,0.147644]
[1729865871444,0.01504,68496.0,68495.0,0.001648]
[1729865871920,0.2083164,68496.0,68495.0,0.001648]
[1729865872104,0.2853164,68496.0,68495.0,0.001648]
[1729865872711,0.534181,68496.0,68495.0,0.001648]
[1729865872935,0.253033,68496.0,68495.0,0.001648]
[1729865878657,0.26392359,68496.0,68495.0,0.001648]
[1729865878900,0.253033,68496.0,68495.0,0.001648]
[1729865879138,0.02004,68496.0,68495.0,0.001648]
[1729865879347,0.01504,68496.0,68495.0,0.001648]
[1729865879553,0.01504,68496.0,68495.0,0.147644]
[1729865880702,0.01004,68496.0,68495.0,0.29814781]
[1729865880919,0.00504,68496.0,68495.0,0.29814781]
[1729865881163,0.00504,68496.0,68495.0,0.32406722]
[1729865881388,0.00504,68496.0,68495.0,0.32114781]
[1729865881625,4e-05,68496.0,68495.0,0.32114781]
[1729865881851,4e-05,68496.0,68495.0,0.39674781]
[1729865882075,0.00504,68496.0,68495.0,0.39674781]
[1729865884073,0.00504,68496.0,68495.0,1.89674781]
[1729865884305,0.00504,68496.0,68495.0,1.90334628]
[1729865884530,4e-05,68496.0,68495.0,1.90334628]
[1729865884740,0.00504,68496.0,68495.0,1.90334628]
[1729865885864,4e-05,68496.0,68495.0,1.90334628]
[1729865886110,4e-05,68496.0,68495.0,2.00334628]
[1729865888768,4e-05,68496.0,68495.0,1.60474628]
[1729865888996,0.01004,68496.0,68495.0,0.25074228]
[1729865889502,0.01504,68496.0,68495.0,0.00659847]
[1729865889966,0.01,68484.0,68483.0,0.22186866]
[1729865890176,0.01,68484.0,68483.0,0.37237247]
[1729865890410,0.01,68484.0,68483.0,0.15912116]
[1729865891100,0.01,68484.0,68483.0,0.30514216]
[1729865891586,0.161019,68484.0,68483.0,0.00861735]
[1729865891814,0.166019,68484.0,68483.0,0.00861735]
[1729865892021,0.166019,68484.0,68483.0,0.001648]
[1729865892248,0.02,68484.0,68483.0,0.001648]
[1729865892472,0.166019,68484.0,68483.0,0.001648]
[1729865892683,0.02,68484.0,68483.0,0.001648]
[1729865893167,0.01,68484.0,68483.0,0.30514216]
[1729865893411,0.01,68484.0,68483.0,0.29817281]
[1729865893648,0.01,68484.0,68483.0,0.30578342]
[1729865893877,0.015,68484.0,68483.0,0.15527961]
[1729865895288,0.015,68484.0,68483.0,0.00925861]
[1729865895495,0.015,68484.0,68483.0,0.15527961]
[1729865895967,0.015,68484.0,68483.0,0.00925861]
[1729865896427,0.015,68484.0,68483.0,0.15527961]
[1729865898507,0.015,68484.0,68483.0,0.30578342]
[1729865899195,0.015,68484.0,68483.0,0.15976242]
[1729865899433,0.015,68484.0,68483.0,0.00925861]
[1729865899687,0.161019,68484.0,68483.0,0.00925861]
[1729865899924,0.41040423,68484.0,68483.0,0.00925861]
[1729865900184,0.35462606,68484.0,68483.0,0.001648]
[1729865900428,0.60512987,68484.0,68483.0,0.001648]
[1729865900656,0.161049,68470.0,68462.0,0.22022066]
[1729865901144,0.260549,68470.0,68469.0,0.00769329]
[1729865901382,0.01,68463.0,68462.0,0.22022066]
[1729865901614,0.015,68463.0,68462.0,0.36628666]
[1729865901844,0.015,68462.0,68461.0,0.36628866]
[1729865902082,0.015,68462.0,68460.0,0.29379]
[1729865902083,0.015,68461.0,68460.0,0.00165]
[1729865902330,0.161068,68461.0,68460.0,0.00165]
[1729865903054,0.41486634,68461.0,68460.0,0.00165]
[1729865903517,0.52385817,68461.0,68460.0,0.00165]
[1729865903741,0.53385817,68461.0,68460.0,0.00165]
[1729865904442,0.42486634,68461.0,68460.0,0.00165]
[1729865904928,0.02,68461.0,68460.0,0.00165]
[1729865906371,0.166068,68461.0,68460.0,0.00165]
[1729865906611,0.02,68461.0,68460.0,0.00165]
[1729865907041,0.166068,68461.0,68460.0,0.00165]
[1729865907263,0.02,68461.0,68460.0,0.00165]
[1729865907489,0.166068,68461.0,68460.0,0.00165]
[1729865907702,0.02,68461.0,68460.0,0.00165]
[1729865908433,0.166068,68461.0,68460.0,0.00165]
[1729865908681,0.015,68461.0,68460.0,0.00165]
[1729865908907,0.02,68461.0,68460.0,0.00165]
[1729865909143,0.166068,68461.0,68460.0,0.00165]
[1729865909389,0.02,68461.0,68460.0,0.00165]
[1729865910343,0.02,68461.0,68460.0,0.01024661]
[1729865910585,0.02,68461.0,68460.0,0.00165]
[1729865911054,0.220967,68461.0,68460.0,0.00165]
[1729865911333,0.166068,68461.0,68460.0,0.00165]
[1729865912042,0.02,68461.0,68460.0,0.00165]
[1729865912286,0.166068,68461.0,68460.0,0.00165]
[1729865912780,0.015,68461.0,68460.0,0.00165]
[1729865912781,0.02,68461.0,68460.0,0.00165]
[1729865913498,0.015,68461.0,68460.0,0.00165]
[1729865914926,0.015,68461.0,68460.0,0.15215381]
[1729865915431,0.015,68461.0,68460.0,0.1607515]
[1729865915669,0.015,68461.0,68460.0,0.3068215]
[1729865916189,0.292069,68477.0,68460.0,0.3068215]
[1729865916190,0.005,68462.0,68461.0,0.146068]
[1729865916427,0.005,68470.0,68469.0,0.146051]
[1729865916665,0.005,68473.0,68471.0,0.146047]
[1729865916666,0.005,68472.0,68471.0,0.146047]
[1729865917402,0.005,68472.0,68471.0,0.15460124]
[1729865917880,0.005,68472.0,68471.0,0.30510505]
[1729865918121,0.005,68473.0,68471.0,0.15905805]
[1729865918361,0.000825,68483.0,68471.0,0.15905805]
[1729865918362,0.005,68478.0,68477.0,0.146034]
[1729865918574,0.005,68478.0,68477.0,0.46857974]
[1729865918821,0.005,68478.0,68477.0,0.62314374]
[1729865919086,0.005,68481.0,68480.0,0.146028]
[1729865919087,0.01,68481.0,68480.0,0.146028]
[1729865919307,0.01,68481.0,68480.0,0.29945199]
[1729865919527,0.01,68481.0,68480.0,0.30795565]
[1729865920656,0.000825,68483.0,68482.0,0.146023]
[1729865920886,0.005825,68483.0,68482.0,0.29944687]
[1729865921181,0.005825,68483.0,68482.0,0.30795046]
[1729865921662,0.005825,68483.0,68482.0,0.3280304]
[1729865922790,0.005825,68483.0,68482.0,1.8280304]
[1729865923036,0.005825,68483.0,68482.0,1.8050304]
[1729865923249,0.010825,68483.0,68482.0,1.8050304]
[1729865923702,0.010825,68483.0,68482.0,0.3050304]
[1729865924589,0.005825,68483.0,68482.0,0.3050304]
[1729865927325,0.000825,68483.0,68482.0,0.3050304]
[1729865927783,0.005825,68483.0,68482.0,0.3050304]
[1729865928281,0.000825,68483.0,68482.0,0.3309506]
[1729865928517,0.000825,68483.0,68482.0,0.5091304]
[1729865928755,0.000865,68483.0,68482.0,2.0111304]
[1729865928970,0.000865,68483.0,68482.0,2.0091304]
[1729865929410,0.000865,68483.0,68482.0,2.0089304]
[1729865930056,0.000865,68483.0,68482.0,2.02281512]
[1729865930508,0.000865,68483.0,68482.0,1.92281512]
[1729865931431,0.000865,68483.0,68482.0,1.9089304]
[1729865931656,0.000865,68483.0,68482.0,1.8048304]
[1729865931935,0.000865,68483.0,68482.0,0.3048304]
[1729865932172,0.18790693,68483.0,68482.0,0.00850359]
[1729865932393,0.015865,68483.0,68482.0,0.00850359]
[1729865932623,0.01,68476.0,68475.0,0.51229666]
[1729865932855,0.01,68476.0,68475.0,0.80883847]
[1729865933086,0.01,68476.0,68475.0,0.58861781]
[1729865935524,0.01,68464.0,68463.0,0.438192]
[1729865935788,0.0793,68477.0,68460.0,0.00165]
[1729865935789,0.015,68461.0,68460.0,0.00165]
[1729865936013,0.015,68461.0,68460.0,0.29822381]
[1729865938817,0.015,68461.0,68460.0,0.00165]
[1729865939041,0.161068,68461.0,68460.0,0.00165]
[1729865939275,0.257068,68461.0,68460.0,0.00165]
[1729865940175,0.41239539,68461.0,68460.0,0.00165]
[1729865941125,0.52113768,68461.0,68460.0,0.00165]
[1729865941820,0.116,68461.0,68460.0,0.00165]
[1729865942034,0.02,68461.0,68460.0,0.00165]
[1729865942451,0.01,68461.0,68460.0,0.00165]
[1729865942672,0.015,68461.0,68460.0,0.14772]
[1729865943125,0.005,68473.0,68460.0,0.14772]
[1729865943126,0.005,68463.0,68462.0,0.146066]
[1729865943362,0.01,68467.0,68463.0,0.292128]
[1729865943594,0.005,68467.0,68466.0,0.146057]
[1729865943819,0.005,68467.0,68466.0,0.29948161]
[1729865944306,0.01,68467.0,68466.0,0.29948161]
[1729865945455,0.005,68467.0,68466.0,0.29948161]
[1729865945676,0.01,68469.0,68468.0,0.146053]
[1729865945906,0.01,68469.0,68468.0,0.29655681]
[1729865946584,0.01,68469.0,68468.0,1.79655681]
[1729865946822,0.01,68469.0,68468.0,0.29655681]
[1729865948149,0.01,68470.0,68469.0,0.438153]
[1729865948363,0.01,68470.0,68469.0,0.58865681]
[1729865948614,0.01,68470.0,68469.0,0.44260581]
[1729865948841,0.01,68470.0,68469.0,0.58865681]
[1729865949312,0.015,68466.0,68465.0,0.146058]
[1729865949560,0.294012,68491.0,68460.0,0.30751906]
[1729865949561,0.015,68461.0,68460.0,0.00165]
[1729865951441,0.161068,68461.0,68460.0,0.00165]
[1729865951671,0.015,68461.0,68460.0,0.00165]
[1729865951894,0.161068,68461.0,68460.0,0.00165]
[1729865952814,0.41513768,68461.0,68460.0,0.00165]
[1729865953067,0.69967635,68461.0,68460.0,0.00165]
[1729865953772,0.015,68451.0,68450.0,0.00430359]
[1729865955424,0.015,68451.0,68450.0,0.3008994]
[1729865957529,0.01,68451.0,68450.0,0.3008994]
[1729865957745,0.01,68451.0,68450.0,0.30382107]
[1729865957963,0.01,68451.0,68450.0,0.3008994]
[1729865958191,4e-05,68461.0,68450.0,0.3008994]
[1729865958192,0.01,68459.0,68458.0,0.146074]
[1729865958415,0.005,68459.0,68458.0,0.29653781]
[1729865958634,0.005,68460.0,68459.0,0.146072]
[1729865958899,0.005,68460.0,68459.0,1.79657581]
[1729865959124,0.005,68460.0,68459.0,2.04564549]
[1729865960741,0.01,68460.0,68459.0,0.29657581]
[1729865962339,0.005,68460.0,68459.0,0.29949703]
[1729865962842,0.005,68460.0,68459.0,0.29657581]
[1729865964682,0.010826,68460.0,68459.0,0.29657581]
[1729865966752,0.005826,68460.0,68459.0,0.29657581]
[1729865967898,0.005866,68460.0,68459.0,0.29657581]
[1729865968149,0.010866,68460.0,68459.0,0.15050381]
[1729865968404,0.01,68452.0,68451.0,0.146089]
[1729865968642,0.000866,68460.0,68459.0,0.39921873]
[1729865968887,0.000866,68460.0,68459.0,0.29657581]
[1729865969380,0.000866,68460.0,68459.0,0.29949664]
[1729865969602,0.000866,68460.0,68459.0,1.82249664]
[1729865969827,0.000866,68460.0,68459.0,1.81957581]
[1729865970283,0.000866,68460.0,68459.0,2.06864549]
[1729865970510,0.000866,68460.0,68459.0,1.99162683]
[1729865970985,0.000866,68460.0,68459.0,2.26367785]
[1729865972126,0.000866,68460.0,68459.0,2.27756088]
[1729865972353,0.000866,68460.0,68459.0,2.18231798]
[1729865974202,0.000866,68460.0,68459.0,2.26281798]
[1729865974470,0.000866,68460.0,68459.0,2.26081798]
[1729865975657,0.005,68484.0,68482.0,0.146023]
[1729865975878,0.005,68484.0,68482.0,0.54538595]
[1729865976564,0.005,68484.0,68482.0,2.04538595]
[1729865977771,0.005,68484.0,68482.0,1.79652681]
[1729865978459,0.000825,68495.0,68482.0,1.79652681]
[1729865978460,0.010865,68483.0,68482.0,1.79652681]
[1729865978702,0.01,68473.0,68472.0,0.146045]
[1729865978950,0.005,68469.0,68468.0,0.146053]
[1729865979385,0.01,68469.0,68468.0,0.146053]
[1729865979642,0.005,68469.0,68468.0,0.146053]
[1729865979867,0.01,68476.0,68475.0,0.146038]
[1729865981033,0.01,68476.0,68475.0,0.29654181]
[1729865981494,0.005865,68483.0,68479.0,0.29206]
[1729865981721,0.005865,68483.0,68482.0,0.146023]
[1729865981949,0.005865,68483.0,68482.0,0.29652681]
[1729865982221,0.010865,68483.0,68482.0,0.29652681]
[1729865982461,0.005865,68483.0,68482.0,0.29652681]
[1729865982681,0.000865,68483.0,68482.0,0.2994471]
[1729865983155,0.000865,68483.0,68482.0,0.3224471]
[1729865983409,0.000865,68483.0,68482.0,0.31952681]
[1729865983642,0.000865,68483.0,68482.0,0.49812681]
[1729865984849,0.000865,68483.0,68482.0,1.99812681]
[1729865986438,0.000865,68483.0,68482.0,2.0120519]
[1729865986910,0.000905,68483.0,68482.0,2.0120519]
[1729865988725,0.000905,68483.0,68482.0,1.9334519]
[1729865991913,1e-06,68483.0,68482.0,1.97058734]
[1729865992136,1e-06,68483.0,68482.0,2.1142519]
[1729865992396,1e-06,68483.0,68482.0,2.1190339]
[1729865992651,0.000825,68495.0,68494.0,0.51785714]
[1729865992913,0.000825,68495.0,68494.0,0.66836095]
[1729865993140,0.000825,68495.0,68494.0,0.99402009]
[1729865993392,0.005,68504.0,68499.0,0.64570528]
[1729865993613,0.000824,68508.0,68499.0,2.31920909]
[1729865993883,0.005,68504.0,68499.0,2.31720909]
[1729865994119,0.000824,68508.0,68499.0,2.31720909]
[1729865994349,0.005,68504.0,68499.0,2.31720909]
[1729865994583,0.005,68504.0,68500.0,0.145985]
[1729865994826,0.005,68504.0,68500.0,0.31948881]
[1729865995076,0.005824,68508.0,68507.0,0.16897]
[1729865995310,0.00055028,68518.0,68517.0,0.168949]
[1729865995554,0.00055028,68518.0,68517.0,0.57123015]
[1729865995779,0.00055028,68518.0,68517.0,2.06831195]
[1729865996004,0.00055028,68518.0,68517.0,2.07487091]
[1729865996233,0.00055028,68518.0,68517.0,2.17487091]
[1729865998536,0.00059028,68518.0,68517.0,2.17487091]
[1729866000451,2.8e-07,68518.0,68517.0,2.42373005]
[1729866000684,0.005,68538.0,68532.0,0.145917]
[1729866000909,0.00087879,68551.0,68550.0,0.168878]
[1729866001128,0.00087879,68551.0,68550.0,0.31938181]
[1729866001129,0.00587879,68551.0,68550.0,0.31938181]
[1729866001391,0.00587879,68551.0,68550.0,0.32674438]
[1729866001900,0.00587879,68551.0,68550.0,1.82674438]
[1729866002397,0.00087879,68551.0,68550.0,1.82674438]
[1729866002644,0.00087879,68551.0,68550.0,2.07560352]
[1729866002870,0.00087879,68551.0,68550.0,1.82674438]
[1729866004032,0.000827,68551.0,68550.0,1.81938181]
[1729866004259,0.010827,68551.0,68550.0,0.29638181]
[1729866004755,0.010827,68551.0,68542.0,0.291791]
[1729866004756,0.005,68544.0,68542.0,0.291791]
[1729866005002,0.01,68544.0,68543.0,0.51661647]
[1729866005245,0.01,68544.0,68543.0,0.15050381]
[1729866005493,0.01,68544.0,68535.0,0.22022066]
[1729866005494,0.01,68536.0,68535.0,0.22022066]
[1729866005980,0.01,68528.0,68515.0,0.24885914]
[1729866006191,0.01,68528.0,68527.0,0.51665147]
[1729866006411,0.01,68528.0,68527.0,0.29643081]
[1729866007099,0.005,68528.0,68527.0,0.29643081]
[1729866007338,0.005,68544.0,68527.0,0.29643081]
[1729866007339,0.005,68536.0,68533.0,0.023]
[1729866007565,0.005827,68551.0,68533.0,0.023]
[1729866007566,0.01,68544.0,68543.0,0.145893]
[1729866007821,0.01,68544.0,68543.0,0.29931437]
[1729866008038,0.01,68544.0,68543.0,0.29639681]
[1729866008291,0.005,68544.0,68543.0,0.29931437]
[1729866008545,0.01,68548.0,68547.0,0.145885]
[1729866008777,0.01,68548.0,68547.0,0.29638881]
[1729866009959,0.01,68548.0,68547.0,0.15050381]
[1729866010218,0.01,68535.0,68534.0,0.22022066]
[1729866010731,0.01,68528.0,68520.0,0.291885]
[1729866010990,0.01,68521.0,68520.0,0.145942]
[1729866011212,0.01,68521.0,68520.0,0.29644581]
[1729866011432,0.01,68521.0,68520.0,0.15050381]
[1729866012144,0.01,68521.0,68511.0,0.291923]
[1729866012390,0.54571914,68526.0,68497.0,0.29198]
[1729866012391,0.01,68503.0,68497.0,0.29198]
[1729866012631,0.01,68503.0,68483.0,0.22022066]
[1729866012632,0.01,68493.0,68492.0,0.22022066]
[1729866013376,0.01,68493.0,68492.0,0.03712221]
[1729866013637,0.01,68493.0,68492.0,0.146002]
[1729866014116,0.01,68493.0,68492.0,0.29650581]
[1729866014366,0.005,68500.0,68485.0,0.146017]
[1729866014367,0.01,68486.0,68485.0,0.146017]
[1729866014601,0.01,68486.0,68485.0,0.29652081]
[1729866015072,0.005,68486.0,68485.0,0.29652081]
[1729866015324,0.005,68496.0,68495.0,0.145996]
[1729866015561,0.005,68498.0,68496.0,0.145993]
[1729866015562,0.005,68497.0,68496.0,0.145993]
[1729866015838,0.005,68497.0,68496.0,0.29649681]